bitfinex/quotes_BTCUSD_20241119
["timestamp","ask_amount","ask_price","bid_price","bid_amount"]
[1732050713123,0.1309,92144.0,92138.0,0.010853]
[1732050713124,0.239426,92144.0,92138.0,0.010853]
[1732050713327,0.239426,92144.0,92137.0,0.010853]
[1732050713328,0.239466,92144.0,92137.0,0.010853]
[1732050713536,0.13094,92144.0,92139.0,0.010853]
[1732050713710,0.13094,92144.0,92137.0,0.010853]
[1732050713911,0.108526,92143.0,92137.0,0.010853]
[1732050714115,4e-05,92143.0,92137.0,0.010853]
[1732050714315,4e-05,92143.0,92133.0,0.10906255]
[1732050714520,4e-05,92143.0,92133.0,0.10076855]
[1732050714744,4e-05,92143.0,92139.0,0.010853]
[1732050715269,4e-05,92143.0,92139.0,0.021706]
[1732050715889,4e-05,92143.0,92139.0,0.010853]
[1732050716504,4e-05,92143.0,92139.0,0.021706]
[1732050716709,4e-05,92143.0,92139.0,0.010853]
[1732050716905,4e-05,92143.0,92137.0,0.010853]
[1732050717290,4e-05,92143.0,92139.0,0.010853]
[1732050717789,4e-05,92143.0,92135.0,0.010853]
[1732050717948,0.108529,92141.0,92135.0,0.021706]
[1732050718289,4e-05,92141.0,92136.0,0.010853]
[1732050718522,4e-05,92141.0,92134.0,0.010853]
[1732050718748,4e-05,92141.0,92138.0,0.010853]
[1732050718971,0.1263717,92140.0,92125.0,0.0099848]
[1732050719183,0.1263717,92140.0,92133.0,0.010853]
[1732050719392,0.1263717,92140.0,92135.0,0.010853]
[1732050719613,0.1264117,92140.0,92137.0,0.010853]
[1732050719822,0.217063,92139.0,92128.0,0.010854]
[1732050720031,0.2349417,92140.0,92128.0,0.010854]
[1732050720248,4e-05,92140.0,92128.0,0.10906255]
[1732050720513,4e-05,92140.0,92139.0,0.010853]
[1732050720929,4e-05,92140.0,92139.0,0.11991555]
[1732050722927,4e-05,92140.0,92139.0,0.21991555]
[1732050727477,0.1263717,92157.0,92140.0,0.110853]
[1732050727683,0.1263717,92157.0,92137.0,0.010853]
[1732050727954,0.108515,92154.0,92138.0,0.10906255]
[1732050728174,0.108516,92152.0,92144.0,0.010852]
[1732050728399,0.1263717,92157.0,92147.0,0.010852]
[1732050728606,0.108516,92152.0,92147.0,0.010852]
[1732050728831,0.1263717,92150.0,92138.0,0.10906255]
[1732050729050,0.1263717,92140.0,92135.0,0.010853]
[1732050729309,0.1263717,92140.0,92088.0,0.0097]
[1732050729310,0.108534,92137.0,92123.0,0.010854]
[1732050729560,0.108534,92137.0,92136.0,0.29129647]
[1732050730190,0.107534,92137.0,92136.0,0.29129647]
[1732050730744,0.234234,92137.0,92136.0,0.29129647]
[1732050730956,0.235234,92137.0,92136.0,0.29129647]
[1732050731169,0.0457,92137.0,92136.0,0.30214947]
[1732050731383,0.252,92158.0,92147.0,0.010852]
[1732050731384,0.0457,92149.0,92147.0,0.010852]
[1732050731626,0.0457,92149.0,92148.0,0.010852]
[1732050731833,0.01,92147.0,92122.0,0.10906255]
[1732050732043,0.108532,92138.0,92132.0,0.010853]
[1732050732252,0.18953,92141.0,92133.0,0.010853]
[1732050732461,0.18953,92141.0,92135.0,0.010853]
[1732050732462,0.108531,92140.0,92135.0,0.010853]
[1732050732697,0.108532,92139.0,92133.0,0.010853]
[1732050732913,0.217058,92141.0,92133.0,0.010853]
[1732050733120,0.110533,92138.0,92133.0,0.010853]
[1732050733357,0.108529,92141.0,92137.0,0.010853]
[1732050733610,0.06364389,92143.0,92124.0,0.10906255]
[1732050733611,0.01,92143.0,92124.0,0.10906255]
[1732050733848,0.01,92143.0,92142.0,0.010852]
[1732050737992,0.01,92148.0,92147.0,0.010852]
[1732050738213,0.01,92146.0,92145.0,0.010852]
[1732050738665,0.04330657,92149.0,92148.0,0.010852]
[1732050738869,0.04330657,92149.0,92146.0,0.010852]
[1732050739093,0.108521,92148.0,92141.0,0.010852]
[1732050739299,0.108521,92148.0,92124.0,0.10906255]
[1732050739300,0.108523,92147.0,92134.0,0.010853]
[1732050739510,0.1714255,92152.0,92142.0,0.010852]
[1732050739511,0.0017086,92143.0,92142.0,0.010852]
[1732050739949,0.0017086,92143.0,92133.0,0.0008543]
[1732050740152,0.0117086,92143.0,92133.0,0.0008543]
[1732050740398,0.2307636,92143.0,92133.0,0.0117073]
[1732050740614,0.2307636,92143.0,92134.0,0.010853]
[1732050740615,0.108529,92141.0,92134.0,0.010853]
[1732050740882,0.10853,92141.0,92134.0,0.021706]
[1732050741086,0.10853204,92139.0,92133.0,0.0008543]
[1732050741293,4e-08,92139.0,92133.0,0.0008543]
[1732050741753,0.0457,92138.0,92133.0,0.0008543]
[1732050742171,0.0457,92138.0,92135.0,0.010853]
[1732050742441,0.0830717,92138.0,92133.0,0.0008543]
[1732050742669,0.110537,92134.0,92133.0,0.0008543]
[1732050742873,0.192037,92134.0,92133.0,0.0008543]
[1732050744403,0.30109955,92134.0,92133.0,0.0008543]
[1732050745460,0.35039955,92134.0,92133.0,0.0008543]
[1732050746454,0.48374629,92134.0,92133.0,0.0008543]
[1732050747225,0.50674629,92134.0,92133.0,0.0008543]
[1732050749714,0.56874927,92134.0,92133.0,0.0008543]
[1732050749923,0.56875126,92134.0,92133.0,0.0008543]
[1732050750336,0.1308,92134.0,92133.0,0.0008543]
[1732050750542,0.09540119,92135.0,92134.0,0.021707]
[1732050750759,0.04321738,92139.0,92133.0,0.0008543]
[1732050750965,0.04321738,92139.0,92133.0,0.0225613]
[1732050751164,0.17321684,92139.0,92133.0,0.0225613]
[1732050751376,0.03459827,92138.0,92133.0,0.0225613]
[1732050751579,0.1263717,92135.0,92133.0,0.0008543]
[1732050751780,0.22177289,92135.0,92133.0,0.0008543]
[1732050752207,0.1263717,92135.0,92133.0,0.0008543]
[1732050752407,0.1263717,92135.0,92104.0,0.021714]
[1732050752408,0.35289624,92134.0,92104.0,0.021714]
[1732050752614,0.35289624,92134.0,92103.0,0.11]
[1732050752615,0.09560636,92124.0,92123.0,0.02171]
[1732050752821,0.14340954,92126.0,92114.0,0.0008545]
[1732050753052,0.09557725,92123.0,92114.0,0.0008545]
[1732050753249,0.09557725,92123.0,92118.0,0.021711]
[1732050753572,0.09557725,92123.0,92114.0,0.0008545]
[1732050753982,0.09557725,92123.0,92121.0,0.04342]
[1732050754220,0.09557725,92123.0,92121.0,0.02171]
[1732050754473,0.04324566,92125.0,92114.0,0.0008545]
[1732050754474,0.09555159,92124.0,92115.0,0.021711]
[1732050754669,0.023,92121.0,92114.0,0.0008545]
[1732050754908,0.023,92117.0,92116.0,0.021711]
[1732050755349,0.023,92122.0,92114.0,0.0008545]
[1732050755583,0.023,92122.0,92121.0,0.02171]
[1732050755796,0.023,92123.0,92121.0,0.02171]
[1732050756072,0.023,92123.0,92122.0,0.02171]
[1732050756506,0.023,92124.0,92123.0,0.02171]
[1732050757348,0.023,92125.0,92124.0,0.021709]
[1732050757521,0.04413927,92131.0,92125.0,0.021709]
[1732050757673,0.04413927,92131.0,92128.0,0.021708]
[1732050757885,0.14332739,92132.0,92128.0,0.021708]
[1732050758316,0.14332739,92133.0,92128.0,0.021708]
[1732050758528,0.14332739,92135.0,92128.0,0.021708]
[1732050758725,0.108534,92137.0,92128.0,0.021708]
[1732050758932,0.15263365,92137.0,92128.0,0.021708]
[1732050759185,4e-08,92139.0,92116.0,0.0098723]
[1732050759389,4e-08,92139.0,92133.0,0.021707]
[1732050759534,4e-08,92139.0,92136.0,0.021707]
[1732050759755,0.03631366,92138.0,92136.0,0.021707]
[1732050759990,0.03631366,92138.0,92137.0,0.021706]
[1732050760162,0.16268536,92138.0,92135.0,0.021707]
[1732050760364,0.03631366,92137.0,92133.0,0.021707]
[1732050760565,0.023,92136.0,92117.0,0.10906255]
[1732050760767,0.05931366,92137.0,92131.0,0.021708]
[1732050761130,0.04341194,92139.0,92131.0,0.021708]
[1732050761131,0.023,92134.0,92133.0,0.021707]
[1732050761278,0.023,92138.0,92134.0,0.021707]
[1732050761506,0.023,92138.0,92137.0,0.021706]
[1732050762213,0.023,92138.0,92119.0,0.0099731]
[1732050762432,0.023,92138.0,92137.0,0.021706]
[1732050763346,0.044708,92138.0,92137.0,0.021706]
[1732050764712,0.044708,92138.0,92134.0,0.021707]
[1732050764887,0.20739336,92138.0,92133.0,0.0008543]
[1732050765072,0.108537,92134.0,92133.0,0.0008543]
[1732050765286,0.131537,92134.0,92133.0,0.0008543]
[1732050765485,0.24715066,92134.0,92133.0,0.0008543]
[1732050765682,0.210837,92134.0,92133.0,0.0008543]
[1732050766165,0.36769955,92134.0,92133.0,0.0008543]
[1732050766570,0.72058708,92134.0,92133.0,0.0008543]
[1732050766764,0.82058708,92134.0,92133.0,0.0008543]
[1732050766965,0.61111755,92134.0,92133.0,0.0008543]
[1732050767470,1.01190678,92134.0,92133.0,0.0008543]
[1732050767831,1.04822044,92134.0,92133.0,0.0008543]
[1732050769063,0.74845453,92134.0,92114.0,0.0008545]
[1732050769274,0.2579307,92115.0,92114.0,0.0008545]
[1732050772280,0.131559,92115.0,92114.0,0.0008545]
[1732050772494,0.023,92115.0,92114.0,0.0008545]
[1732050772698,0.131559,92115.0,92114.0,0.0008545]
[1732050773349,0.43680024,92115.0,92114.0,0.0008545]
[1732050773568,0.58011746,92115.0,92114.0,0.0008545]
[1732050773776,0.63231814,92115.0,92114.0,0.0008545]
[1732050773992,0.53880024,92115.0,92114.0,0.0008545]
[1732050774422,0.53880024,92115.0,92101.0,0.0008546]
[1732050774423,0.2579467,92102.0,92101.0,0.0008546]
[1732050774624,0.36700925,92102.0,92101.0,0.0008546]
[1732050774836,0.36700925,92102.0,92077.0,0.0205131]
[1732050774837,0.108587,92092.0,92077.0,0.0205131]
[1732050775091,0.29483345,92092.0,92077.0,0.0205131]
[1732050775293,0.42120515,92092.0,92077.0,0.0205131]
[1732050775498,0.49339295,92092.0,92077.0,0.0205131]
[1732050775941,0.47839295,92092.0,92077.0,0.0205131]
[1732050776178,0.35202125,92092.0,92078.0,0.02172]
[1732050776442,0.35202125,92092.0,92077.0,0.0205131]
[1732050777269,0.388896,92092.0,92077.0,0.0205131]
[1732050777679,0.42405044,92092.0,92077.0,0.0205131]
[1732050777886,0.55042214,92092.0,92077.0,0.0205131]
[1732050778565,0.29767874,92092.0,92077.0,0.0205131]
[1732050778791,0.05815444,92092.0,92077.0,0.0205131]
[1732050779076,0.16674144,92092.0,92078.0,0.02172]
[1732050779301,0.20361619,92092.0,92078.0,0.02172]
[1732050779509,0.52015044,92092.0,92077.0,0.0205131]
[1732050780368,0.52215044,92092.0,92077.0,0.0205131]
[1732050780570,0.39577874,92092.0,92077.0,0.0205131]
[1732050780777,0.64377874,92092.0,92077.0,0.0205131]
[1732050780999,0.64345306,92092.0,92077.0,0.0205131]
[1732050781908,0.39345306,92092.0,92077.0,0.0205131]
[1732050782776,0.64345306,92092.0,92077.0,0.0205131]
[1732050783226,0.86982476,92092.0,92077.0,0.0205131]
[1732050783433,0.87182476,92092.0,92077.0,0.0205131]
[1732050783647,0.90542149,92092.0,92077.0,0.0205131]
[1732050783853,0.131603,92078.0,92077.0,0.0205131]
[1732050784059,0.2579747,92078.0,92077.0,0.0205131]
[1732050784291,0.10861,92072.0,92071.0,0.0004]
[1732050784507,0.023,92072.0,92071.0,0.0004]
[1732050784748,0.023,92076.0,92071.0,0.0004]
[1732050784957,0.32627155,92077.0,92071.0,0.0004]
[1732050784958,0.13161,92072.0,92071.0,0.0004]
[1732050785642,0.023,92072.0,92071.0,0.0004]
[1732050785871,0.023,92076.0,92071.0,0.0004]
[1732050786109,0.0353097,92074.0,92072.0,0.032583]
[1732050786315,0.25,92078.0,92071.0,0.0004]
[1732050786535,0.25,92078.0,92072.0,0.054305]
[1732050786842,0.108594,92086.0,92075.0,0.021721]
[1732050787036,0.108594,92086.0,92071.0,0.0004]
[1732050787037,0.108593,92087.0,92071.0,0.0004]
[1732050787274,0.108591,92088.0,92079.0,0.02172]
[1732050787483,0.108588,92091.0,92077.0,0.032581]
[1732050787723,0.16217123,92092.0,92080.0,0.02172]
[1732050787934,0.108593,92087.0,92080.0,0.02172]
[1732050788200,0.1263717,92084.0,92071.0,0.0004]
[1732050788408,0.1263717,92084.0,92075.0,0.021721]
[1732050788409,0.023,92076.0,92075.0,0.021721]
[1732050788650,0.023,92083.0,92071.0,0.0012544]
[1732050788872,0.023,92072.0,92071.0,0.0012544]
[1732050789085,0.023,92072.0,92071.0,0.0229764]
[1732050789301,0.023,92080.0,92079.0,0.02172]
[1732050789504,0.023,92086.0,92079.0,0.02172]
[1732050789709,0.023,92085.0,92079.0,0.02172]
[1732050789927,0.023,92085.0,92071.0,0.0012544]
[1732050790139,0.023,92083.0,92072.0,0.032583]
[1732050790348,0.023,92083.0,92071.0,0.0012544]
[1732050790586,0.023,92087.0,92084.0,0.021719]
[1732050790817,0.023,92087.0,92072.0,0.032583]
[1732050791030,0.023,92087.0,92073.0,0.086885]
[1732050791254,0.023,92087.0,92083.0,0.021719]
[1732050791494,0.108594,92086.0,92080.0,0.02172]
[1732050791708,0.023,92087.0,92063.0,0.10906255]
[1732050791997,0.1263717,92102.0,92091.0,0.021717]
[1732050792237,0.23727325,92109.0,92094.0,0.02083458]
[1732050792238,0.03893617,92109.0,92094.0,0.02083458]
[1732050792444,0.1263717,92111.0,92094.0,0.01817868]
[1732050792676,0.03562027,92106.0,92094.0,0.01817868]
[1732050792888,0.108555,92119.0,92094.0,0.01817868]
[1732050793116,0.217098,92125.0,92094.0,0.01817868]
[1732050793117,0.1263717,92114.0,92094.0,0.01817868]
[1732050793339,0.1263717,92114.0,92094.0,0.12724123]
[1732050793551,0.1263717,92121.0,92094.0,0.12724123]
[1732050793762,0.108554,92120.0,92094.0,0.12724123]
[1732050793991,0.1263717,92114.0,92094.0,0.12724123]
[1732050795773,0.1263717,92128.0,92094.0,0.28624123]
[1732050795995,0.1263717,92128.0,92094.0,0.37314123]
[1732050796213,0.1263717,92111.0,92094.0,0.25314123]
[1732050796436,0.1263717,92123.0,92094.0,0.25314123]
[1732050796650,1.7686861,92095.0,92094.0,0.26314123]
[1732050796873,1.6405861,92095.0,92094.0,0.26244123]
[1732050797129,1.6253861,92095.0,92094.0,0.26244123]
[1732050798043,1.5168011,92095.0,92094.0,0.12426255]
[1732050798252,1.5168011,92095.0,92094.0,0.14097855]
[1732050798493,0.0017088,92138.0,92137.0,0.021706]
[1732050798921,0.0017088,92138.0,92137.0,0.13076855]
[1732050800423,0.001708,92170.0,92138.0,0.021706]
[1732050800424,0.004337,92160.0,92138.0,0.021706]
[1732050800628,0.004337,92160.0,92142.0,0.021705]
[1732050800841,0.1280797,92170.0,92142.0,0.13076755]
[1732050801046,0.01,92168.0,92142.0,0.13076755]
[1732050801260,0.1280797,92170.0,92142.0,0.13076755]
[1732050801493,0.001708,92170.0,92142.0,0.23076755]
[1732050802419,0.1423457,92184.0,92183.0,0.021695]
[1732050802625,0.1263717,92184.0,92183.0,0.021695]
[1732050802839,0.001709,92188.0,92184.0,0.021695]
[1732050803252,0.045071,92185.0,92184.0,0.021695]
[1732050803474,0.001709,92185.0,92184.0,0.021695]
[1732050803887,0.001709,92185.0,92184.0,0.13075755]
[1732050805835,0.001509,92185.0,92184.0,0.13075755]
[1732050806058,0.001509,92185.0,92184.0,0.23075755]
[1732050807670,0.1508807,92185.0,92184.0,0.021695]
[1732050808142,0.001509,92185.0,92184.0,0.13075755]
[1732050808380,0.001509,92185.0,92184.0,0.23075755]
[1732050809519,0.024509,92185.0,92184.0,0.021695]
[1732050810001,0.001509,92185.0,92184.0,0.13075755]
[1732050811505,0.024509,92185.0,92184.0,0.021695]
[1732050812237,0.024509,92185.0,92175.0,0.021697]
[1732050812238,0.023,92184.0,92175.0,0.021697]
[1732050812466,0.023,92171.0,92162.0,0.0217]
[1732050812709,0.023,92171.0,92170.0,0.021699]
[1732050812932,0.023,92181.0,92176.0,0.021697]
[1732050813158,0.023,92182.0,92180.0,0.021696]
[1732050813376,0.023,92182.0,92178.0,0.021697]
[1732050813829,0.023,92182.0,92152.0,0.10906255]
[1732050813830,0.023,92182.0,92181.0,0.021696]
[1732050814486,0.023,92182.0,92179.0,0.021696]
[1732050814697,0.023,92182.0,92155.0,0.01]
[1732050814698,0.21076343,92182.0,92171.0,0.021698]
[1732050814915,0.21076343,92182.0,92156.0,0.10906255]
[1732050815123,0.21076343,92182.0,92176.0,0.021697]
[1732050815585,0.0751,92183.0,92182.0,0.021696]
[1732050816212,0.0751,92183.0,92180.0,0.021696]
[1732050816454,0.0751,92183.0,92182.0,0.021696]
[1732050816876,0.0981,92183.0,92182.0,0.021696]
[1732050817295,0.023,92182.0,92160.0,0.03458382]
[1732050817794,0.01447543,92191.0,92190.0,0.021694]
[1732050817795,0.01447543,92191.0,92182.0,0.021696]
[1732050817796,0.0017082,92226.0,92198.0,0.031692]
[1732050818021,0.0017082,92226.0,92198.0,0.23075455]
[1732050819164,0.108431,92224.0,92198.0,0.23075455]
[1732050819386,0.0017082,92226.0,92198.0,0.23075455]
[1732050820507,0.0779,92225.0,92198.0,0.23075455]
[1732050821439,0.18776343,92217.0,92198.0,0.021692]
[1732050821650,0.0779,92198.0,92193.0,0.021693]
[1732050821884,0.0779,92198.0,92171.0,0.0283335]
[1732050821885,0.18776343,92196.0,92171.0,0.0283335]
[1732050822100,0.0779,92198.0,92197.0,0.021692]
[1732050822316,0.0458,92205.0,92198.0,0.021692]
[1732050823422,0.0768,92214.0,92198.0,0.021692]
[1732050824077,0.0768,92214.0,92199.0,0.0096]
[1732050824297,0.0768,92214.0,92213.0,0.021688]
[1732050824725,0.045,92223.0,92218.0,0.021687]
[1732050827597,0.045,92223.0,92215.0,0.021688]
[1732050827808,0.045,92223.0,92218.0,0.021687]
[1732050828464,0.0017082,92226.0,92218.0,0.021687]
[1732050832375,0.0493412,92236.0,92233.0,0.021684]
[1732050832806,0.0493412,92236.0,92233.0,0.043368]
[1732050833015,0.0493412,92236.0,92233.0,0.021684]
[1732050833277,0.0493412,92236.0,92235.0,0.021683]
[1732050833710,0.0493412,92236.0,92233.0,0.043368]
[1732050833944,4.12e-05,92236.0,92235.0,0.021683]
[1732050836155,4.12e-05,92236.0,92235.0,0.02074284]
[1732050838657,0.021684,92248.0,92235.0,0.12980539]
[1732050838658,0.0142334,92248.0,92235.0,0.12980539]
[1732050838909,0.075,92255.0,92230.0,0.01]
[1732050838910,0.075,92255.0,92254.0,0.021679]
[1732050839155,0.0004,92259.0,92258.0,0.021678]
[1732050840134,0.0004,92259.0,92255.0,0.021678]
[1732050840344,0.1243,92246.0,92216.0,0.01]
[1732050840559,0.023,92245.0,92214.0,0.01]
[1732050840784,0.023,92245.0,92230.0,0.021684]
[1732050841016,0.023,92239.0,92230.0,0.021684]
[1732050841247,0.108416,92237.0,92230.0,0.021684]
[1732050841478,0.023,92239.0,92230.0,0.021684]
[1732050841720,0.1243,92246.0,92208.0,0.1098149]
[1732050841721,0.216816,92244.0,92226.0,0.021685]
[1732050841969,0.023,92245.0,92208.0,0.0098149]
[1732050841970,0.023,92235.0,92208.0,0.0098149]
[1732050842224,0.023,92235.0,92193.0,0.081]
[1732050842225,0.023,92226.0,92211.0,0.021689]
[1732050842431,0.023,92226.0,92213.0,0.021688]
[1732050842432,0.108437,92219.0,92213.0,0.021688]
[1732050842843,0.211337,92219.0,92210.0,0.021689]
[1732050843702,0.211337,92219.0,92198.0,0.021692]
[1732050843703,0.211337,92219.0,92206.0,0.02169]
[1732050843917,0.211337,92219.0,92194.0,0.021693]
[1732050843918,0.32039955,92219.0,92194.0,0.021693]
[1732050844131,0.32039955,92219.0,92198.0,0.0315245]
[1732050844367,0.32039955,92219.0,92199.0,0.021692]
[1732050844572,0.108454,92205.0,92198.0,0.021692]
[1732050844810,0.108462,92198.0,92185.0,0.0098467]
[1732050845034,0.023,92203.0,92191.0,0.021693]
[1732050845288,0.216917,92201.0,92191.0,0.021693]
[1732050845511,0.216917,92201.0,92192.0,0.021693]
[1732050845716,0.108463,92197.0,92189.0,0.021694]
[1732050845935,0.023,92203.0,92162.0,0.0008531]
[1732050845936,0.13206255,92196.0,92162.0,0.0008531]
[1732050846272,0.123,92194.0,92162.0,0.0008531]
[1732050846499,0.108477,92186.0,92177.0,0.021697]
[1732050846715,0.108479,92184.0,92177.0,0.021697]
[1732050846922,0.44899655,92194.0,92177.0,0.021697]
[1732050846923,0.10848,92183.0,92177.0,0.021697]
[1732050847144,0.216955,92185.0,92176.0,0.021697]
[1732050847359,0.216955,92185.0,92177.0,0.021697]
[1732050847570,0.108478,92185.0,92178.0,0.021697]
[1732050847774,0.108478,92185.0,92177.0,0.021697]
[1732050847775,0.108479,92184.0,92177.0,0.021697]
[1732050847989,0.108479,92184.0,92178.0,0.021697]
[1732050848200,0.18776343,92187.0,92173.0,0.021698]
[1732050848435,0.023,92184.0,92173.0,0.021698]
[1732050848649,0.108481,92182.0,92173.0,0.021698]
[1732050848833,0.108482,92181.0,92174.0,0.021698]
[1732050849095,0.023,92182.0,92171.0,0.0017046]
[1732050849305,0.023,92177.0,92171.0,0.0017046]
[1732050849524,0.216976,92176.0,92171.0,0.0017046]
[1732050849731,0.108492,92172.0,92171.0,0.0017046]
[1732050849939,0.31855455,92172.0,92171.0,0.0017046]
[1732050851443,0.41855455,92172.0,92171.0,0.0017046]
[1732050851658,0.46815455,92172.0,92171.0,0.0017046]
[1732050851863,0.46815455,92172.0,92138.0,0.021706]
[1732050851864,0.31926643,92163.0,92138.0,0.021706]
[1732050852100,0.31926643,92163.0,92126.0,0.021709]
[1732050852101,0.42832898,92163.0,92137.0,0.021706]
[1732050852548,0.42832898,92163.0,92138.0,0.021706]
[1732050852777,0.54632598,92163.0,92131.0,0.021708]
[1732050853013,0.54632598,92163.0,92125.0,0.0017066]
[1732050853014,0.108534,92137.0,92129.0,0.021708]
[1732050853220,0.108536,92135.0,92129.0,0.021708]
[1732050853432,0.108533,92138.0,92131.0,0.021708]
[1732050853937,0.18776343,92152.0,92125.0,0.0017066]
[1732050853938,0.123,92145.0,92128.0,0.021708]
[1732050854161,0.217056,92142.0,92130.0,0.021708]
[1732050854394,0.217058,92141.0,92130.0,0.021708]
[1732050854626,0.108532,92139.0,92133.0,0.021707]
[1732050854858,0.217058,92141.0,92130.0,0.021708]
[1732050854859,0.108531,92140.0,92132.0,0.021707]
[1732050855080,0.217058,92141.0,92130.0,0.021708]
[1732050855284,0.123,92145.0,92125.0,0.0017066]
[1732050855285,0.108532,92139.0,92132.0,0.021707]
[1732050855523,0.108532,92139.0,92133.0,0.021707]
[1732050855723,0.108532,92139.0,92132.0,0.043414]
[1732050855925,0.108532,92139.0,92133.0,0.021707]
[1732050856561,0.108532,92139.0,92134.0,0.021707]
[1732050856789,0.108532,92139.0,92132.0,0.021707]
[1732050857009,0.123,92145.0,92137.0,0.021706]
[1732050857222,0.1,92143.0,92131.0,0.021708]
[1732050857445,0.108531,92140.0,92126.0,0.021709]
[1732050857676,0.108531,92140.0,92134.0,0.021707]
[1732050857912,0.108532,92139.0,92133.0,0.021707]
[1732050858124,0.108534,92137.0,92130.0,0.021708]
[1732050858329,0.18776343,92143.0,92128.0,0.021708]
[1732050858536,0.108538,92134.0,92126.0,0.021709]
[1732050858748,0.217058,92141.0,92125.0,0.0017066]
[1732050858990,0.0493,92142.0,92125.0,0.0017066]
[1732050859202,0.10854,92132.0,92126.0,0.021709]
[1732050859426,0.18776343,92133.0,92125.0,0.0017066]
[1732050859617,0.108544,92129.0,92125.0,0.0017066]
[1732050859840,0.18776343,92133.0,92125.0,0.0017066]
[1732050859841,0.10854,92132.0,92126.0,0.021709]
[1732050860047,0.108545,92128.0,92125.0,0.0017066]
[1732050860288,0.108544,92129.0,92125.0,0.0234156]
[1732050860494,0.10854,92132.0,92127.0,0.021708]
[1732050860933,0.108541,92131.0,92125.0,0.0451246]
[1732050861164,0.217075,92134.0,92125.0,0.0451246]
[1732050861165,0.240073,92135.0,92127.0,0.021709]
[1732050861394,0.108542,92130.0,92125.0,0.0234156]
[1732050861611,0.108542,92130.0,92125.0,0.0017066]
[1732050862051,0.108543,92129.0,92125.0,0.0017066]
[1732050862260,0.023,92135.0,92125.0,0.0017066]
[1732050862678,0.108543,92129.0,92125.0,0.0017066]
[1732050862890,0.023,92135.0,92125.0,0.0017066]
[1732050863091,0.108546,92127.0,92125.0,0.0017066]
[1732050863320,0.023,92133.0,92125.0,0.0017066]
[1732050863525,0.108543,92129.0,92125.0,0.0017066]
[1732050863727,0.108543,92129.0,92125.0,0.0234156]
[1732050863970,0.130252,92131.0,92125.0,0.0234156]
[1732050864156,0.130252,92131.0,92126.0,0.021709]
[1732050864831,0.108541,92131.0,92126.0,0.021709]
[1732050865054,0.108542,92130.0,92125.0,0.0234156]
[1732050865346,0.32612255,92141.0,92125.0,0.0234156]
[1732050865347,0.079,92172.0,92141.0,0.01]
[1732050865556,0.079,92172.0,92130.0,0.1]
[1732050865557,0.216998,92167.0,92149.0,0.021703]
[1732050865784,0.216998,92167.0,92142.0,0.13076755]
[1732050865785,0.18776343,92164.0,92152.0,0.021703]
[1732050865992,0.18776343,92164.0,92153.0,0.021702]
[1732050866220,0.217006,92163.0,92150.0,0.021703]
[1732050866434,0.217006,92163.0,92131.0,0.11895435]
[1732050866435,0.108525,92144.0,92131.0,0.0098918]
[1732050866658,0.10906255,92162.0,92134.0,0.021707]
[1732050866659,0.108529,92141.0,92134.0,0.021707]
[1732050866872,0.10853,92140.0,92131.0,0.021708]
[1732050867290,0.217054,92143.0,92131.0,0.021708]
[1732050867291,0.131528,92142.0,92133.0,0.021707]
[1732050867501,0.023,92142.0,92137.0,0.021706]
[1732050867706,0.023,92143.0,92137.0,0.021706]
[1732050867929,0.023,92144.0,92139.0,0.021706]
[1732050868192,0.023,92144.0,92125.0,0.0017066]
[1732050868193,0.10853,92141.0,92125.0,0.0017066]
[1732050868404,0.10853,92141.0,92135.0,0.021707]
[1732050868618,0.217056,92142.0,92131.0,0.021708]
[1732050868844,0.023,92139.0,92131.0,0.021708]
[1732050869068,0.023,92139.0,92125.0,0.0017066]
[1732050869069,0.131531,92139.0,92132.0,0.043414]
[1732050869287,0.023,92139.0,92135.0,0.021707]
[1732050869704,0.131526,92144.0,92139.0,0.021706]
[1732050869920,0.131526,92144.0,92127.0,0.043418]
[1732050869921,0.217056,92142.0,92127.0,0.021709]
[1732050870122,0.108536,92135.0,92134.0,0.0017064]
[1732050870771,0.108527,92143.0,92134.0,0.0017064]
[1732050870983,0.023,92144.0,92134.0,0.0017064]
[1732050871221,0.02841752,92145.0,92142.0,0.021705]
[1732050871442,0.108527,92143.0,92138.0,0.021706]
[1732050871710,0.108526,92144.0,92139.0,0.021706]
[1732050871911,0.217035,92151.0,92134.0,0.0017064]
[1732050871912,0.108536,92135.0,92134.0,0.0017064]
[1732050872351,0.217069,92137.0,92134.0,0.0017064]
[1732050872352,0.108534,92137.0,92134.0,0.0017064]
[1732050872773,0.10906255,92150.0,92134.0,0.0017064]
[1732050872774,0.217011,92162.0,92149.0,0.021703]
[1732050873019,0.217011,92162.0,92152.0,0.021703]
[1732050873248,0.25,92163.0,92152.0,0.021703]
[1732050873249,0.108506,92161.0,92152.0,0.021703]
[1732050873487,0.25,92163.0,92149.0,0.021703]
[1732050873711,0.217004,92164.0,92153.0,0.021702]
[1732050873948,0.108507,92160.0,92151.0,0.021703]
[1732050874186,0.02755454,92165.0,92153.0,0.021702]
[1732050874414,0.216999,92166.0,92155.0,0.021702]
[1732050874667,0.023,92166.0,92154.0,0.021702]
[1732050874895,0.023,92164.0,92154.0,0.021702]
[1732050875118,0.131502,92164.0,92155.0,0.021702]
[1732050875343,0.108498,92168.0,92160.0,0.021701]
[1732050875564,0.023,92167.0,92155.0,0.021702]
[1732050875792,0.023,92167.0,92157.0,0.021702]
[1732050876053,0.023,92167.0,92159.0,0.021701]
[1732050876278,0.023,92164.0,92159.0,0.021701]
[1732050876505,0.023,92164.0,92148.0,0.0099362]
[1732050876726,0.216994,92169.0,92149.0,0.021703]
[1732050876989,0.023,92168.0,92159.0,0.021701]
[1732050877416,0.023,92166.0,92161.0,0.021701]
[1732050877858,0.023,92165.0,92161.0,0.021701]
[1732050878100,0.108502,92164.0,92160.0,0.021701]
[1732050878337,0.023,92165.0,92160.0,0.021701]
[1732050878804,0.239995,92168.0,92159.0,0.021701]